Cogmind - Beta 13 @@@ ROGUE MODE // 2024.04.04 @ 20:33:43 Player: Dumant Result: Destroyed by D-53 Grenadier with Mini Grenade Launcher Performance ------------- Evolutions (0) 0 Regions Visited (2) 400 Robots Destroyed (19) 95 Value Destroyed (529) 529 Prototype IDs (0) 0 Alien Tech Used (0) 0 Bonus (0) 0 TOTAL SCORE: 1024 Bonus ------- None Cogmind --------- Core Integrity 0/250 Matter 300/300 Energy 100/100 System Corruption 0% Temperature Cool (1) Movement Walking (330) Ox3 Location -10/Mines Parts ------- > --- POWER (1) -------- (None) > --- PROPULSION (2) --- Aluminum Leg > --- UTILITY (2) ------ High-capacity Storage Unit Signal Interpreter > --- WEAPON (2) ------- (None) > --- INVENTORY (20) --- Light Ion Engine Light Ion Engine Wheel Heat Sink Medium Storage Unit Structural Scanner Visual Processing Unit Sensor Array Medium Laser Grenade Launcher Mining Laser Stasis Trap (100%) Stasis Trap (100%) Stasis Trap (100%) Stasis Trap (100%) Peak State ------------ > --- POWER ------------ Ion Engine > --- PROPULSION ------- Wheel Wheel > --- UTILITY ---------- Small Storage Unit Visual Processing Unit > --- WEAPON ----------- Assault Rifle Assault Rifle > --- INVENTORY -------- Ion Engine Aluminum Leg Aluminum Leg Heat Sink Medium Laser Grenade Launcher [Rating: 8] Favorites ----------- Power Ion Engine Engine Ion Engine Propulsion Aluminum Leg Leg Aluminum Leg Wheel Wheel Utility Signal Interpreter Device Heat Sink Storage High-capacity Storage Unit Processor Signal Interpreter Weapon Assault Rifle Energy Gun Medium Laser Ballistic Gun Assault Rifle Build | -11 -10 -10 ------- Run | Yrd Mat Min Slots Evolved . | . . . Power . | . . . Propulsion . | . . . Utility . | . . . Weapon . | . . . Parts Attached 19 | 6 13 . Power 2 | 1 1 . Engine 2 | 1 1 . Core . | . . . Reactor . | . . . Propulsion 5 | 2 3 . Treads . | . . . Leg 3 | . 3 . Wheel 2 | 2 . . Hover . | . . . Flight . | . . . Utility 6 | 1 5 . Device 1 | . 1 . Storage 3 | 1 2 . Processor 2 | . 2 . Hackware . | . . . Protection . | . . . Artifact . | . . . Weapon 6 | 2 4 . Energy Gun 2 | 1 1 . Energy Cannon . | . . . Ballistic Gun 4 | 1 3 . Ballistic Cannon . | . . . Launcher . | . . . Special Weapon . | . . . Impact Weapon . | . . . Slashing Weapon . | . . . Piercing Weapon . | . . . Special Melee Weapon . | . . . Unidentified Prototypes . | . . . Parts Lost 8 | . 4 4 Power 1 | . . 1 Propulsion 3 | . 2 1 Utility . | . . . Weapon 4 | . 2 2 Highest Loss Streak 4 | . 3 4 To Critical Strikes . | . . . Average Slot Usage (%) 96 | . 94 100 Engine 14 | . 14 14 Leg 20 | . 16 28 Wheel 6 | . 9 . Storage 14 | . 14 14 Processor 12 | . 12 14 Energy Gun 2 | . 3 . Ballistic Gun 24 | . 23 28 Naked Turns . | . . . Heaviest Build 49 | 14 49 49 Greatest Support 20 | 20 20 20 Greatest Overweight (x) 4 | 3 2 4 Average Overweight (x) . | . . 2 Largest Inventory Capacity 20 | 8 20 20 Average Capacity 14 | 7 12 20 Most Carried 15 | 3 10 15 Average Carried 7 | 2 7 10 Final Capacity 20 | 8 20 20 Final Carried 15 | 3 10 15 Class Distribution -------------------- 100% | Mutant Dominant Class ---------------- Mutant | -10/Materials Mutant | -10/Mines Resources | -11 -10 -10 ----------- Run | Yrd Mat Min Matter Collected 647 | 79 520 48 Remotely . | . . . Salvage Created 647 | . 508 139 Parts 34 | . 29 5 Haulers Intercepted . | . . . Recyclers Shooed . | . . . Parts Field Recycled . | . . . Retrieved Matter . | . . . Parts Self-Destructed . | . . . Prevented . | . . . Kills | -11 -10 -10 ------- Run | Yrd Mat Min Combat Hostiles Destroyed 17 | . 13 4 Guns 17 | . 13 4 Classes Destroyed 3 | . 3 . Watcher 2 | . 2 . Swarmer 5 | . 3 2 Grunt 12 | . 10 2 Best Kill Streak 4 | . 4 4 Combat Bots Only 4 | . 4 4 Max Kills in Single Turn 2 | . 2 1 Gunslinging . | . . . Exploded . | . . . Melee . | . . . Uniques/NPCs Destroyed . | . . . Combat | -11 -10 -10 -------- Run | Yrd Mat Min Hostile Shots Fired 111 | . 88 23 Missed 31 | . 25 6 Damage Taken 1109 | 1 790 318 Core 252 | . 235 17 Absorbed by Shields . | . . . Core Remaining (%) 100 | 100 . . Volleys Fired 87 | . 78 9 Largest 2 | . 2 2 Hottest 70 | . 70 40 Shots Fired 146 | . 129 17 Gun 146 | . 129 17 Cannon . | . . . Launcher . | . . . Special . | . . . Kinetic 108 | . 91 17 Thermal 38 | . 38 . Explosive . | . . . Electromagnetic . | . . . Robot Hit Streak 10 | . 10 3 Robot Miss Streak 4 | . 4 2 Penetration Max . | . . . Secondary Targets . | . . . Shots Hit Robots 86 | . 75 11 Core Hits 35 | . 28 7 Critical Kills . | . . . Critical Parts Destroyed 1 | . 1 . Critical Strikes 4 | . 4 . Burn 3 | . 3 . Destroy 1 | . 1 . Melee Attacks . | . . . Impact . | . . . Slashing . | . . . Piercing . | . . . Sneak Attacks . | . . . Combat Hostiles . | . . . Follow-up Attacks . | . . . Damage Inflicted 1219 | 2 1050 167 Guns 1206 | . 1039 167 Cannons . | . . . Explosions . | . . . Melee . | . . . Ramming 13 | 2 11 . Kinetic 884 | . 717 167 Thermal 322 | . 322 . Explosive . | . . . Electromagnetic . | . . . Impact . | . . . Slashing . | . . . Piercing . | . . . Highest Corruption . | . . . Average Corruption . | . . . Corruption Purged . | . . . Corruption Blocked . | . . . Overload Shots . | . . . Overflow Damage . | . . . Projectiles . | . . . Explosions . | . . . Melee . | . . . Knockbacks . | . . . Impact . | . . . Kinetic . | . . . Secondary . | . . . Self-Inflicted Damage 6 | 1 5 . Shots . | . . . Rammed 5 | 1 4 . Targets Rammed 5 | 1 4 . Kicked . | . . . Crushed . | . . . Highest Temperature 159 | . 159 20 Average Temperature 44 | . 45 7 Received Heat Transfer 477 | . 423 54 Siege Activations . | . . . Robots Corrupted . | . . . Combat Hostiles . | . . . Parts Fried . | . . . Impact Corruptions . | . . . Robots Melted . | . . . Combat Hostiles . | . . . Parts Melted 4 | . 4 . Heat Transferred 1184 | . 1184 . Parts Sabotaged . | . . . Parts Stolen . | . . . Parts Stripped . | . . . Power Chain Reactions . | . . . Alert | -11 -10 -10 ------- Run | Yrd Mat Min Peak Influence 192 | . 192 100 Initial . | . . . Average 75 | . 91 64 Maximum Alert Level . | . . . Low Security (%) 100 | 100 100 100 Level 1 . | . . . Level 2 . | . . . Level 3 . | . . . Level 4 . | . . . Level 5 . | . . . High Security . | . . . Max Security . | . . . Squads Dispatched 3 | . 3 . Investigation 1 | . 1 . Extermination . | . . . Reinforcement 2 | . 2 . Assault . | . . . Garrison . | . . . Intercept . | . . . Searches Triggered . | . . . Construction Impeded . | . . . Haulers Reinforced . | . . . Active Scanning Responses . | . . . Cargo Convoy Interrupts . | . . . Stealth | -11 -10 -10 --------- Run | Yrd Mat Min Distress Signals . | . . . Communications Jammed . | . . . Distress Signals . | . . . Times Spotted 29 | . 22 7 Peak Tracking Total 5 | . 5 5 Tactical Retreats 1 | . 1 . Traps | -11 -10 -10 ------- Run | Yrd Mat Min Traps Triggered 2 | . 2 . Indirectly . | . . . Trap Hack Attempts . | . . . Triggered . | . . . Disarmed . | . . . Reprogrammed . | . . . Reused . | . . . Traps Extracted . | . . . Installed . | . . . Triggered . | . . . Most Traps Carried 4 | . . 4 Machines | -11 -10 -10 ---------- Run | Yrd Mat Min Machines Disabled . | . . . Max in Single Turn . | . . . Machines Repaired . | . . . Machines Dismantled . | . . . Machines Sabotaged . | . . . Overloaded Fab Kills . | . . . Hacking | -11 -10 -10 --------- Run | Yrd Mat Min Machines Accessed 7 | . 7 . Terminals 6 | . 6 . Fabricators . | . . . Repair Stations . | . . . Recycling Units 1 | . 1 . Scanalyzers . | . . . Garrison Access . | . . . Total Hacks 20 | . 20 . Successful 7 | . 7 . Failed 13 | . 13 . Catastrophic 3 | . 3 . Database Lockouts . | . . . Manual 11 | . 11 . Terminals 17 | . 17 . Fabricators . | . . . Repair Stations . | . . . Recycling Units 3 | . 3 . Scanalyzers . | . . . Garrison Access . | . . . Terminal Hacks 4 | . 4 . Level Access Points 1 | . 1 . Alert Level 1 | . 1 . Zone Layout 2 | . 2 . Fabricator Hacks . | . . . Repair Station Hacks . | . . . Recycling Unit Hacks 3 | . 3 . Process 1 | . 1 . Report Inventory 1 | . 1 . Retrieve Matter 1 | . 1 . Scanalyzer . | . . . Garrison Access Hacks . | . . . Unauthorized Hacks . | . . . Terminals . | . . . Fabricators . | . . . Repair Stations . | . . . Recycling Units . | . . . Scanalyzers . | . . . Garrison Access . | . . . Data Cores Recovered . | . . . Used . | . . . Hacking Detections 5 | . 5 . Full Trace Events 4 | . 4 . Feedback Events . | . . . Feedback Blocked . | . . . Robot Schematics Acquired . | . . . Robots Built . | . . . Authchips . | . . . Time . | . . . Total Robot Build Rating . | . . . Part Schematics Acquired . | . . . Parts Built . | . . . Authchips . | . . . Time . | . . . Total Part Build Rating . | . . . Parts Repaired . | . . . Time . | . . . Parts Recycled . | . . . Recycled Matter 24 | . 24 . Retrieved Matter 24 | . 24 . Retrieved Components . | . . . Parts Scanalyzed . | . . . Part Schematics Acquired . | . . . Parts Damaged . | . . . Bothacking | -11 -10 -10 ------------ Run | Yrd Mat Min Used RIF Installer . | . . . Robots Hacked . | . . . Non-combat . | . . . Combat . | . . . Robot Hacks Applied . | . . . Relay Couplers Released . | . . . Fabnet Peak Effective % . | . . . Robots Rewired . | . . . Allies Hacked . | . . . Hacks Repelled . | . . . Allies | -11 -10 -10 -------- Run | Yrd Mat Min Total Allies . | . . . Largest Group . | . . . Highest-Rated Group . | . . . Highest-Rated Ally . | . . . Total Orders . | . . . Ally Attacks . | . . . Total Damage . | . . . Kills . | . . . Allies Corrupted . | . . . Allies Melted . | . . . Intel | -11 -10 -10 ------- Run | Yrd Mat Min Robot Analysis Total . | . . . Derelict Logs Recovered 1 | . . 1 Drone Launches . | . . . Drone Recoveries . | . . . Exploration | -11 -10 -10 ------------- Run | Yrd Mat Min Turns Passed 1972 | 175 1256 541 Spaces Moved 992 | 47 748 197 Core 10 | 10 . . Treads . | . . . Legs 581 | . 384 197 Wheels 401 | 37 364 . Hover . | . . . Flight . | . . . Fastest Speed 50 | 50 80 260 Average Speed 154 | 94 129 260 Slowest Speed 400 | 200 260 400 Overloaded Moves . | . . . Propulsion Burnouts . | . . . Robots Hopped . | . . . Cave-ins Triggered . | . . . Exploration Rate (%) 49 | 4 93 50 Regions Visited 2 Branch Regions 1 Pre-discovered Areas 1 | . . 1 Known Exits Taken 1 | . 1 . Unknown Exits Taken 1 | 1 . . Scrap Searched 1 | . . 1 Spaces Dug . | . . . Terrain Destroyed . | . . . Melee . | . . . Projectile . | . . . AOE . | . . . Terrain Rammed . | . . . Walls Destroyed . | . . . Machines Disabled . | . . . Actions | -11 -10 -10 --------- Run | Yrd Mat Min Total 1287 | 174 902 211 Wait 163 | 118 45 . Move 990 | 46 747 197 Hop . | . . . Pick Up 20 | 3 12 5 Fast Attach 9 | 6 3 . Attach 3 | . 3 . Detach 1 | . 1 . Swap 7 | . 7 . Drop 2 | . 2 . Fire 87 | . 78 9 Melee . | . . . Ram 5 | 1 4 . Kick . | . . . Crush . | . . . Escape Stasis . | . . . Rewire . | . . . Trap . | . . . Miscellaneous . | . . . Route ------- -11/Scrapyard -10/Materials (discovered 4 exits: *Mat x3 / *Min) -10/Mines History --------- Turn | Location | Event 2 | -11/Scrapyard | Met Revision 17 11 | -11/Scrapyard | Discovered new exit (range 16) 176 | -11/Scrapyard | Entered Materials 303 | -10/Materials | Build established: Mutant 330 | -10/Materials | Discovered new exit (range 12) 412 | -10/Materials | Discovered new exit (range 17) 571 | -10/Materials | Lost 3 parts (1n2w) 619 | -10/Materials | Core integrity fell below 50% 702 | -10/Materials | Discovered new exit (range 18) 887 | -10/Materials | Identified exit to Materials 895 | -10/Materials | Core integrity fell below 20% 989 | -10/Materials | Discovered exit to Materials (range 7) 1429 | -10/Materials | Identified exit to Mines 1432 | -10/Materials | Entered Mines 1932 | -10/Mines | Found a hidden stash of uninstalled traps 1961 | -10/Mines | Assembled infested the area 1973 | -10/Mines | Destroyed by D-53 Grenadier with Mini Grenade Launcher Last Messages --------------- 01501_ Acquired 48 matter. 01541_ R-06 Scavenger collects Ion Engine. 01591_ K-01 Serf collects debris. 01729_ Acquired derelict log, extracted data. World map updated: -8/Materials. 01731_ K-01 Serf collects debris. 01932_ A stash of uninstalled traps is collected here! 01937_ Acquired Stasis Trap. 01960_ Searching scrap... 01960_ Found Hcp. Battery. 01960_ Found Structural Scanner. 01960_ Found 32 Matter. 01961_ ALERT: Infestation in the mines, dispatching Demolisher response squad. 01965_ Acquired Structural Scanner. 01970_ C-30 ARC bursts open, deploying its payload. 01970_ D-53 Grenadier unfolds itself. 01970_ Aluminum Leg destroyed. 01970_ Assault Rifle destroyed. 01973_ Ion Engine destroyed. Map ----- +----------------------------------------------------+ | | | | | | | ?????????????????????????????????????????????????? | | ?????????????????????????????????????????????????? | | ?????????????????????????????????????????????????? | | ?????????????????????????????????????????????????? | | ?????????????????????????????????????????????????? | | ?????????????????????????????????????????????????? | | ?????????????????????????????????????????????????? | | ?????????????????????????????????????????????????? | | ?????????????????????????????????????????????????? | | ?????????????????????????????????????????????????? | | ?????????????????????????????????????????????????? | | ???????????????????? ????????????????????????????? | | ???????????????????? ????????????????????????????? | | ???????????????????? ????????????????????????????? | | ????????????????#### ????????????????????????????? | | ???????????????? #????????????????????????????? | | ????????????????? #????????????????????????????? | | ?????????????????# #??#######???????????????????? | | ?????????????????# #?## # ##??????????????????? | | ?????????????????# ### ##?????????????????? | | ?????????????????# ## #?????????????????? | | ?????????????????# ## #### #?????????????? | | ??????????######## @ d % #?????????????? | | ??????????# d #?????????????? | | ????????### ##### #####?????????????? | | ????????# #???## ##?????????????????? | | ????????# ##????#### ## #####??????????????????? | | ????????# #????????# ####??????????????????????? | | ????????# #????????# ????????????????????????? | | ????????# #????????######???????????????????????? | | ????????# #?????????????????????????????????????? | | ???????## #????????????#???????###??????????????? | | ?????## #???????????? ?????## ??????????????? | | ?????# #???????????? ????? ??????????????? | | #???## #???????????? ?????? ??????????????? | | #### ##??????????? ?????? ??????????????? | | #######????? ?????? ??????????????? | | ##???? ?????? ??????????????? | | #???# #????? #??????????????? | | ## ##???# #?????# #??????????????? | | ?## ## #????# #?????# #??????????????? | | ??# ### #????# #?????# #??????????????? | | ??# ## #?# #????# #?????# #??????????????? | | ??# ##?# ### #????# #?????# #??????????????? | | ??## #??# ## ###### ###???# #??????????????? | | ???# ##??# # ##### #??????????????? | | ???# ##??# #??????????????? | +----------------------------------------------------+ Best States ------------- Heat Dissipation 35 Energy Generation 10 Energy Capacity 250 Matter Stores 300 Matter Capacity 300 Sight Range 18 Terrain Scan Density 10 Evasion (%) 55 Item Schematics ----------------- None Robot Schematics ------------------ None Fabricated ------------ Nothing Alien Tech Used ----------------- None Achievements -------------- None Challenges ------------ None Game ------ Seed MomentumAbsorptionHammer Manual? 0 Play Time 00:19:13 Cumulative 13.9 hours Start 2024.04.04 @ 20:15:48 End 2024.04.04 @ 20:33:43 Sessions 1 Manual Loads 0 Difficulty Rogue Special Mode None Game No. 29 Rogue 16 Adventurer 8 Explorer 5 Win Type - Total 0 Types 0/0/0/0/0/0/0/0/0 Lore% 13 Gallery% 23 Achievement% 24 Wizard Run 0 Options --------- Layout 0 ASCII 0 Keyboard 1 Movement Arrows Keybinds 0 Fullscreen 1 Font 18/SmallcapsGlow Map View 76x50 Zoom Use 26% Tactical HUD 1 Map Filters NONE Filters NONE Steam 1 RUN: 1042628a-8a41-4636-b371-80f75a4e0074